Workbook

Sheet 주요생필품
B1: 2016. 3월 대덕구 주요생필품 가격동향
B2: (2016. 3. 10. 기준) (단위:원)
B3: 품목 | C3: 조사기준 | E3: 평균가 | F3: 평균가 | G3: 오정동 | H3: 대화동 | I3: 회 덕 동 | J3: 비래동 | K3: 송 촌 동 | L3: 중리동 | M3: 법1,2동 | N3: 신탄진동 | O3: 석봉,목상동 | P3: 덕암동
E4: (2월) | F4: (3월) | G4: 두아름 | H4: 우리마트 | I4: 하나로마트 | J4: 비래스토아 | K4: 하나로마트 | L4: 중리시장 | M4: 법동시장 | N4: 롯데슈퍼 | O4: 하나로마트 | P4: 모아마트
A5: 농 산 물 (14) | B5: 쌀 | C5: 청풍명월(20kg) | E5: 42922.22222 | F5: =AVERAGE(G5:P5) -> 42177.77778 | G5: 42000 | I5: 42000 | J5: 39800 | K5: 42000 | L5: 44000 | M5: 44000 | N5: 39800 | O5: 44000 | P5: 42000
C6: 일반정미(20kg) | E6: 48750 | F6: =AVERAGE(G6:P6) -> 49250 | G6: 50000 | H6: 49000 | J6: 54000 | L6: 44000
B7: 콩 | C7: 국산, 백태 1kg | E7: 9114 | F7: 8325 | G7: 6000 | H7: 10600 | I7: 7800 | J7: 8000 | K7: 8640 | L7: 8570 | M7: 7000 | N7: 13290 | O7: 7400 | P7: 5950
B8: 참깨 | C8: 국산 500g | E8: 21583.33333 | F8: 20414.28571 | H8: 27000 | I8: 14000 | J8: 26000 | K8: 14400 | L8: 15000 | O8: 16500 | P8: 30000
C9: 수입산, 500g | E9: 6966.666667 | F9: 7133.333333 | G9: 10000 | H9: 5700 | J9: 5100 | L9: 7500 | M9: 6000 | P9: 8500
B10: 사과 | C10: 부사 400g1개, 중품 | E10: 2855.555556 | F10: 2876.666667 | G10: 2000 | I10: 2500 | J10: 2700 | K10: 2000 | L10: 1000 | M10: 2500 | N10: 4990 | O10: 5000 | P10: 3200
B11: 배 | C11: 신고배 600g1개, 중품 | E11: 3180 | F11: 3339 | G11: 2000 | H11: 2700 | I11: 3000 | J11: 4500 | K11: 3200 | L11: 3000 | M11: 3500 | N11: 4990 | O11: 4000 | P11: 2500
B12: 감귤 | C12: 100g 정도 10개 | E12: 1830 | F12: 3092.222222 | G12: 2000 | I12: 3000 | J12: 3000 | K12: 3000 | L12: 3000 | M12: 3000 | N12: 2290 | O12: 2500 | P12: 6040
B13: 밤 | C13: 굵은것 1kg | E13: 6812.5 | F13: 7337.5 | G13: 5000 | I13: 8500 | J13: 8000 | K13: 8500 | L13: 5000 | M13: 6000 | O13: 8000 | P13: 9700
B14: 무 | C14: 통무우 2kg | E14: 1190 | F14: 2175 | G14: 2000 | H14: 2800 | I14: 2000 | J14: 1500 | K14: 2300 | L14: 1500 | M14: 2000 | N14: 2650 | O14: 3000 | P14: 2000
B15: 배추 | C15: 통배추 2kg | E15: 2271.428571 | F15: 3790 | G15: 4000 | I15: 3500 | J15: 3500 | K15: 4000 | L15: 2330 | M15: 4000 | N15: 4990 | P15: 4000
B16: 고추가루 | C16: 국산, 400g | E16: 13531.11111 | F16: 12464 | G16: 8000 | H16: 17600 | I16: 10000 | J16: 20000 | K16: 10560 | L16: 9300 | M16: 10000 | N16: 11480 | O16: 8700 | P16: 19000
B17: 양파 | C17: 망에든것 1kg | E17: 2979 | F17: 3169 | G17: 2500 | H17: 3500 | I17: 2700 | J17: 1800 | K17: 4000 | L17: 2500 | M17: 3000 | N17: 3590 | O17: 4100 | P17: 4000
B18: 대파 | C18: 1kg | E18: 3364.6 | F18: 4342.4 | G18: 4000 | H18: 6250 | I18: 6044 | J18: 3500 | K18: 5540 | L18: 3000 | M18: 3500 | N18: 1990 | O18: 5000 | P18: 4600
B19: 깐마늘 | C19: 국산, 중품, 100g | E19: 1040 | F19: 1054 | G19: 800 | H19: 1250 | I19: 1150 | J19: 1000 | K19: 1150 | L19: 800 | M19: 800 | N19: 1390 | O19: 1000 | P19: 1200
B20: 콩나물 | C20: 수입콩, 포장, 300g | E20: 1255.555556 | F20: 1311.111111 | G20: 1500 | H20: 1200 | J20: 1350 | K20: 990 | L20: 1360 | M20: 1500 | N20: 1000 | O20: 1500 | P20: 1400
A21: 축 산 물 (4) | B21: 쇠고기 | C21: 한우등심1등급 600g | E21: 50897.77778 | F21: 50285 | G21: 51000 | H21: 40000 | J21: 57000 | K21: 60000 | L21: 42000 | M21: 54000 | N21: 44880 | O21: 53400
B22: 돼지고기 | C22: 국산, 삼겹살 600g | E22: 10948 | F22: 9836 | G22: 8400 | H22: 9600 | I22: 8880 | J22: 9800 | K22: 10500 | L22: 10800 | M22: 9900 | N22: 10680 | O22: 9900 | P22: 9900
B23: 생닭 | C23: 하림, 육계 1마리 1kg | E23: 5348 | F23: 5227 | G23: 5000 | H23: 5000 | I23: 5300 | J23: 6200 | K23: 1950 | L23: 6000 | M23: 6000 | N23: 6220 | O23: 5000 | P23: 5600
B24: 달걀 | C24: 대란 1판(30개) | E24: 5628 | F24: 5138 | G24: 4300 | H24: 5500 | I24: 5600 | J24: 5000 | K24: 5300 | L24: 6000 | M24: 6000 | N24: 4980 | O24: 4200 | P24: 4500
A25: 수 산 물 (5) | B25: 조기 | C25: 수입, 25cm정도, 1마리 | E25: 5544.444444 | F25: 5211.111111 | G25: 4000 | H25: 4000 | I25: 7000 | J25: 9000 | K25: 4000 | L25: 5000 | M25: 3000 | O25: 5900 | P25: 5000
B26: 동태 | C26: 수입, 냉동40cm1마리 | E26: 3161.111111 | F26: 3238.888889 | G26: 3000 | H26: 2500 | I26: 3000 | J26: 5000 | K26: 3000 | L26: 3000 | M26: 3500 | N26: 3900 | O26: 2250
B27: 오징어(냉동) | C27: 25cm정도1마리 | E27: 2594.444444 | F27: 2515.555556 | G27: 2500 | H27: 3000 | I27: 2400 | J27: 2500 | K27: 2500 | L27: 2500 | M27: 2500 | N27: 2490 | O27: 2250
B28: 김 | C28: 재래생김 1속, 중품 | E28: 5825 | F28: 6200 | G28: 5000 | I28: 7500 | J28: 9000 | K28: 6000 | L28: 5000 | M28: 5000 | O28: 5800 | P28: 6300
B29: 멸치 | C29: 멸치(국물용) 500g | E29: 5734.444444 | F29: 6573 | G29: 6500 | H29: 6500 | I29: 7800 | J29: 4000 | K29: 7200 | L29: 4000 | M29: 7000 | N29: 4980 | O29: 6750 | P29: 11000
A30: 공 산 품 (15) | B30: 밀가루 | C30: 제일제당중력분 1kg | E30: 1563 | F30: 1573 | G30: 1600 | H30: 1800 | I30: 1500 | J30: 1740 | K30: 1690 | L30: 1500 | M30: 1350 | N30: 1500 | O30: 1400 | P30: 1650
B31: 설탕 | C31: 제일제당정백당 1kg | E31: 1884 | F31: 1903 | G31: 2100 | H31: 2200 | I31: 1700 | J31: 1950 | K31: 1690 | L31: 1950 | M31: 1600 | N31: 1790 | O31: 1850 | P31: 2200
B32: 두부 | C32: 국산콩, 풀무원(부침용), 300g | E32: 3300 | F32: 3317.5 | G32: 3200 | I32: 3300 | J32: 3350 | K32: 3250 | L32: 3100 | N32: 3790 | O32: 3200 | P32: 3350
C33: 수입콩 (부침용) 300g | E33: 1260 | F33: 1252.222222 | G33: 1200 | I33: 1200 | J33: 1600 | K33: 990 | L33: 1030 | M33: 1500 | N33: 1150 | O33: 1500 | P33: 1100
B34: 라면 | C34: 신라면 1봉지 | E34: 680 | F34: 680 | G34: 750 | H34: 800 | I34: 660 | J34: 650 | K34: 650 | L34: 620 | M34: 700 | N34: 640 | O34: 640 | P34: 690
B35: 식용유 | C35: 백설표 1.8L 대두유 | E35: 6155 | F35: 6105 | G35: 6700 | H35: 5300 | I35: 5800 | J35: 4500 | K35: 6950 | L35: 4800 | M35: 6950 | N35: 7100 | O35: 5400 | P35: 7550
B36: 참기름 | C36: 오뚜기320ml 1병 | E36: 6260 | F36: 6200 | G36: 6500 | H36: 4800 | I36: 6000 | J36: 6510 | K36: 6400 | L36: 4800 | M36: 6600 | N36: 6990 | O36: 6600 | P36: 6800
B37: 분말커피 | C37: 동서맥심175g 1병 | E37: 11100 | F37: 11175 | G37: 11500 | H37: 12500 | I37: 10300 | J37: 11650 | K37: 10300 | L37: 11200 | M37: 11200 | N37: 10800 | O37: 10300 | P37: 12000
B38: 소주 | C38: O2린 360ml, 1병 | E38: 1201 | F38: 1207 | G38: 1250 | H38: 1300 | I38: 1140 | J38: 1220 | K38: 1170 | L38: 1200 | M38: 1130 | N38: 1200 | O38: 1200 | P38: 1260
B39: 맥주 | C39: 카스 500ml 1병 | E39: 1354 | F39: 1351 | G39: 1400 | H39: 1500 | I39: 1300 | J39: 1300 | K39: 1220 | L39: 1400 | M39: 1240 | N39: 1400 | O39: 1300 | P39: 1450
B40: 청주 | C40: 백화수복, 1.8L 1병 | E40: 10150 | F40: 10165 | G40: 10500 | H40: 11000 | I40: 9600 | J40: 10150 | K40: 9600 | L40: 10500 | M40: 10000 | N40: 10200 | O40: 9600 | P40: 10500
B41: 화장지 | C41: 크리넥스 35mⅹ24롤(백색) | E41: 20211.11111 | F41: 19504.44444 | G41: 22000 | I41: 16000 | J41: 18140 | K41: 19800 | L41: 20500 | M41: 23700 | N41: 16900 | O41: 18500 | P41: 20000
B42: 빵 | C42: 삼립 식빵 750g | E42: 2393.75 | F42: 2418.75 | G42: 2600 | I42: 1850 | J42: 2500 | K42: 2500 | L42: 2450 | M42: 2750 | O42: 2200 | P42: 2500
B43: 우유 | C43: 매일우유 1000L | E43: 2652.222222 | F43: 2474.444444 | G43: 2650 | I43: 1950 | J43: 2800 | K43: 2540 | L43: 1990 | M43: 2300 | N43: 2700 | O43: 2650 | P43: 2690
B44: 분유 | C44: 남양임페리얼 3단계 | E44: 28571.42857 | F44: 28571.42857 | J44: 28000 | K44: 26500 | L44: 27900 | M44: 27500 | N44: 27500 | O44: 36600 | P44: 26000
B45: 세제 | C45: 애경 스파크 3kg | E45: 7658 | F45: 8018 | G45: 9900 | H45: 7800 | I45: 11300 | J45: 7330 | K45: 9200 | L45: 3950 | M45: 6000 | N45: 10600 | O45: 5700 | P45: 8400

Sheet 개인서비스
A1: 2016. 3월 대덕구 개인서비스요금 가격동향
A2: 조사일시 : 2016. 3. 10.
A3: 구 분 | C3: 평균가 | D3: 평균가 | E3: 대 덕 구
A4: 지역 품목 | B4: 조사기준 | C4: 2월 | D4: 3월 | E4: 오정동 | F4: 대화동 | G4: 회덕동 | H4: 비래동 | I4: 송촌동 | J4: 중리동 | K4: 법1,2동 | L4: 신탄진동 | M4: 석봉,목상동 | N4: 덕암동
A6: 설렁탕 | B6: 1그릇(대중식당) | C6: 6666.666667 | D6: =AVERAGE(E6:N6) -> 6666.666667 | E6: 6000 | I6: 6000 | J6: 6000 | K6: 7000 | M6: 7000 | N6: 8000
A7: 냉 면 | B7: " | C7: 6200 | D7: =AVERAGE(E7:N7) -> 6300 | E7: 7500 | F7: 5000 | G7: 6000 | H7: 7000 | I7: 8000 | J7: 6000 | K7: 5500 | L7: 7000 | M7: 5000 | N7: 6000
A8: 비빔밥 | B8: " | C8: 5000 | D8: 5000 | E8: 4000 | F8: 4500 | H8: 4500 | I8: 5000 | J8: 4000 | K8: 6000 | L8: 6000 | M8: 6000 | N8: 5000
A9: 갈비탕 | B9: " | C9: 7400 | D9: 7400 | E9: 5000 | F9: 5000 | G9: 8000 | H9: 8000 | I9: 10000 | J9: 6000 | K9: 9000 | L9: 8000 | M9: 7000 | N9: 8000
A10: 삼계탕 | B10: " | C10: 10200 | D10: 10200 | E10: 10000 | F10: 10000 | G10: 10000 | H10: 10000 | I10: 11000 | J10: 10000 | K10: 10000 | L10: 10000 | M10: 11000 | N10: 10000
A11: 김치찌개백반 | B11: " | C11: 5800 | D11: 5900 | E11: 5000 | F11: 7000 | G11: 6000 | H11: 5000 | I11: 6000 | J11: 6000 | K11: 7000 | L11: 6000 | M11: 6000 | N11: 5000
A12: 된장찌개백반 | B12: " | C12: 5800 | D12: 5700 | E12: 5000 | F12: 5000 | G12: 6000 | H12: 5000 | I12: 6000 | J12: 6000 | K12: 7000 | L12: 6000 | M12: 6000 | N12: 5000
A13: 불고기 | B13: 1인분(200g) | C13: 10000 | D13: 10200 | E13: 10000 | H13: 11000 | I13: 8000 | J13: 12000 | M13: 10000
A14: 등심 | B14: " | C14: 24666.66667 | D14: 25333.33333 | E14: 29000 | G14: 25000 | H14: 28000 | I14: 16000 | J14: 29000 | K14: 30000 | L14: 25000 | M14: 22000 | N14: 24000
A15: 돼지갈비 | B15: " | C15: 10100 | D15: 10200 | E15: 10000 | F15: 10000 | G15: 11000 | H15: 11000 | I15: 11000 | J15: 10000 | K15: 9000 | L15: 10000 | M15: 10000 | N15: 10000
A16: 삼겹살 | B16: " | C16: 8800 | D16: 9900 | E16: 10000 | F16: 9000 | G16: 11000 | H16: 11000 | I16: 10000 | J16: 9000 | K16: 9000 | L16: 10000 | M16: 10000 | N16: 10000
A17: 자장면 | B17: 1그릇(중국집) | C17: 4350 | D17: 4350 | E17: 4000 | F17: 4000 | G17: 4500 | H17: 4500 | I17: 4000 | J17: 4500 | K17: 5000 | L17: 4000 | M17: 4000 | N17: 5000
A18: 짬뽕 | B18: " | C18: 5050 | D18: 5050 | E18: 5000 | F18: 5000 | G18: 5000 | H18: 5000 | I18: 5000 | J18: 5000 | K18: 6000 | L18: 4500 | M18: 5000 | N18: 5000
A19: 탕수육 | B19: 일반 보통 | C19: 15900 | D19: 15900 | E19: 15000 | F19: 16000 | G19: 17000 | H19: 16000 | I19: 12000 | J19: 18000 | K19: 20000 | L19: 20000 | M19: 10000 | N19: 15000
A20: 돈가스 | B20: 1인분(경양식집) | C20: 6050 | D20: 6050 | E20: 3800 | G20: 6000 | H20: 5000 | I20: 9000 | J20: 5500 | K20: 7000
A21: 생선초밥 | B21: 1인분(일식집) | C21: 9500 | D21: 9500 | H21: 10000 | I21: 10000 | J21: 8000 | K21: 10000
A22: 치킨 | B22: 1마리(튀김통닭) | C22: 14700 | D22: 14700 | E22: 14000 | F22: 13000 | G22: 16000 | H22: 16000 | I22: 15000 | J22: 10000 | K22: 16000 | L22: 17000 | M22: 14000 | N22: 16000
A23: 햄버거 | B23: 1개(야채+고기 +전문햄버거) | C23: 2771.428571 | D23: 2771.428571 | F23: 2000 | G23: 3300 | H23: 2300 | I23: 3400 | J23: 3500 | K23: 3000 | L23: 1900
A24: 피자 | B24: 1판 (불고기 9인치) | C24: 10755.55556 | D24: 10755.55556 | E24: 11100 | G24: 7900 | H24: 8900 | I24: 7900 | J24: 9000 | K24: 16000 | L24: 6000 | M24: 12000 | N24: 18000
A25: 칼국수 | B25: 1그릇 (분식집) | C25: 4550 | D25: 4550 | E25: 5000 | F25: 4000 | G25: 5000 | H25: 4000 | I25: 5000 | J25: 4000 | K25: 4000 | L25: 5000 | M25: 4500 | N25: 5000
A26: 라면 | B26: " | C26: 2650 | D26: 2650 | E26: 2500 | F26: 2500 | G26: 2500 | H26: 2500 | I26: 3000 | J26: 2500 | K26: 2500 | L26: 3500 | M26: 2000 | N26: 3000
A27: 김밥 | B27: " | C27: 1600 | D27: 1600 | E27: 1500 | F27: 1500 | G27: 1500 | H27: 1500 | I27: 1500 | J27: 1500 | K27: 3000 | L27: 1500 | M27: 1000 | N27: 1500
A28: 커피 | B28: 1잔 (일반 원두커피) | C28: 2500 | D28: 2500 | E28: 3000 | G28: 3000 | H28: 2500 | I28: 2500 | J28: 2000 | L28: 2500 | M28: 2000
A29: 국산차 | B29: 녹차 | C29: 2833.333333 | D29: 2833.333333 | E29: 3000 | G29: 3000 | H29: 3000 | J29: 2000 | L29: 3000 | M29: 3000
A30: 생맥주 | B30: 500CC | C30: 2950 | D30: 2950 | E30: 2500 | F30: 3000 | G30: 3000 | H30: 3000 | I30: 3000 | J30: 3000 | K30: 3000 | L30: 3000 | M30: 3000 | N30: 3000
A31: 세 탁 료 | B31: 1벌(양복상하) | C31: 6300 | D31: 6300 | E31: 6000 | F31: 6000 | G31: 6000 | H31: 7000 | I31: 5000 | J31: 6000 | K31: 7000 | L31: 6000 | M31: 7000 | N31: 7000
A32: 의복수선료 | B32: 신사복하의(길이수선) | C32: 2700 | D32: 2700 | E32: 3000 | F32: 3000 | G32: 2000 | H32: 2000 | I32: 3000 | J32: 2000 | K32: 3000 | L32: 2000 | M32: 3000 | N32: 4000
A33: 공동주택 관리비 | B33: 1개월고층 31평 개별부과요금제외 | C33: 103680 | D33: 102609 | E33: 105122 | F33: 55664 | G33: 130174 | H33: 80000 | I33: 82400 | J33: 128080 | K33: 145000 | L33: 109111 | N33: 87930
A34: 택배이용료 | B34: 기본20kg미만 | C34: 5888.888889 | D34: 5888.888889 | E34: 5000 | F34: 5000 | G34: 6000 | H34: 5000 | I34: 7000 | J34: 5000 | L34: 10000 | M34: 5000 | N34: 5000
A35: 수영장이용료 | B35: 성인 1회 (체육기금포함) | C35: 2750 | D35: 2750 | F35: 2500 | J35: 3000
A36: 볼링장이용료 | B36: 1게임1인 (일반평일) | C36: 9540 | D36: 3240 | E36: 2800 | G36: 3300 | H36: 3300 | M36: 3500 | N36: 3300
A37: 골프연습장 이용료 | B37: 1개월초급 (남자레슨기금5%) | C37: 110000 | D37: 110000 | E37: 120000 | G37: 140000 | I37: 90000 | K37: 100000 | L37: 100000
A38: 당구장이용료 | B38: 1시간(쿠션당구대일반) | C38: 7480 | D38: 7480 | E38: 8000 | F38: 7000 | G38: 7200 | H38: 7800 | I38: 9000 | J38: 6000 | K38: 7000 | L38: 7800 | M38: 7200 | N38: 7800
A39: 노래방 이용료 | B39: 1시간(일반실저녁) | C39: 21000 | D39: 21000 | E39: 25000 | F39: 20000 | G39: 20000 | H39: 25000 | I39: 20000 | J39: 20000 | K39: 20000 | L39: 20000 | M39: 20000 | N39: 20000
A40: PC방이용료 | B40: 1시간 | C40: 966.6666667 | D40: 966.6666667 | E40: 800 | F40: 1000 | G40: 1000 | H40: 1000 | I40: 900 | J40: 1000 | L40: 1000 | M40: 1000 | N40: 1000
A41: 영화관람료 | B41: 1회(상영시간100분)
A42: 사진촬영료 | B42: 증명판 | C42: 14666.66667 | D42: =AVERAGE(E42:N42) -> 14666.66667 | E42: 13000 | G42: 13000 | H42: 13000 | I42: 15000 | J42: 15000 | K42: 15000 | L42: 20000 | M42: 10000 | N42: 18000
A43: 사진인화료 | B43: 디지탈사진인화료 1장 | C43: 334.375 | D43: =AVERAGE(E43:N43) -> 333.75 | E43: 300 | H43: 250 | I43: 300 | J43: 300 | K43: 300 | L43: 600 | M43: 250 | N43: 370
A44: 숙박료(호텔) | B44: 1박(관광호텔 2급2종)
A45: 숙박료(여관) | B45: 1박 | C45: 32142.85714 | D45: =AVERAGE(E45:N45) -> 32142.85714 | E45: 30000 | G45: 35000 | H45: 30000 | J45: 30000 | L45: 40000 | M45: 30000 | N45: 30000
A46: 콘도이용료 | B46: 25평, 1일1박
A47: 이용료 | B47: 1회(성인중급) | C47: 10100 | D47: =AVERAGE(E47:N47) -> 10100 | E47: 10000 | F47: 10000 | G47: 10000 | H47: 9000 | I47: 9000 | J47: 13000 | K47: 10000 | L47: 10000 | M47: 10000 | N47: 10000
A48: 미용료 | B48: 컷트(여) | C48: 8600 | D48: =AVERAGE(E48:N48) -> 8700 | E48: 8000 | F48: 7000 | G48: 10000 | H48: 8000 | I48: 10000 | J48: 10000 | K48: 9000 | L48: 8000 | M48: 10000 | N48: 7000
A49: 목 욕 료 | B49: 성인1회 | C49: 5050 | D49: 5050 | E49: 5000 | F49: 5000 | G49: 5000 | H49: 5000 | I49: 7000 | J49: 5000 | K49: 4000 | L49: 5000 | M49: 5000 | N49: 4500
A50: 찜질방이용료 | B50: 성인1회 | C50: 8000 | D50: 8000 | I50: 8000 | L50: 8000
A51: 운동경기관람료 | B51: 1회(프로야구 축구일반내야)

Sheet 서민생활물가
B1: 2016. 3월 서민생활물가 가격동향
B3: 2016. 3. 10.일자 기준 / (단위 : 원)
B4: 지역 품목 | C4: 조사기준 | D4: 우리구 평균가격 | F4: 동 구 | G4: 중 구 | H4: 서 구 | I4: 유성구 | J4: 대덕구
D5: 전월(2월) | E5: 본월(3월)
B6: 냉 면 | C6: 1그릇(대중식당) | D6: 6200 | E6: 6300
B7: 비빔밥 | C7: " | D7: 5000 | E7: 5000
B8: 김치찌개 | C8: " | D8: 5800 | E8: 5900
B9: 삼겹살(외식) | C9: " | D9: 8800 | E9: 9900
B10: 자장면 | C10: 1그릇(중국집) | D10: 4350 | E10: 4350
B11: 삼계탕 | C11: " | D11: 10200 | E11: 10200
B12: 칼국수 | C12: 1그릇(분식집) | D12: 4550 | E12: 4550
B13: 김밥 | C13: " | D13: 1600 | E13: 1600
B14: 세 탁 료 | C14: 1벌(양복상하) | D14: 6300 | E14: 6300
B15: 숙박료(호텔,여관) | C15: 1박(관광호텔2급2종) | D15: 32143 | E15: 32143
B16: 이용료 | C16: 1회(성인중급) | D16: 10100 | E16: 10100
B17: 미용료 | C17: 컷트 | D17: 8600 | E17: 8700
B18: 목욕료 | C18: 성인1회(대중목욕탕) | D18: 5050 | E18: 5050
B19: 소고기 | C19: 한우등심1등급 600g | D19: 50898 | E19: 50285
B20: 돼지고기 | C20: 삼겹살 600g | D20: 10948 | E20: 9836
B21: 닭고기 | C21: 1마리 1kg | D21: 5348 | E21: 5227
B22: 달걀 | C22: 대란 30개 | D22: 5628 | E22: 5138
B23: 배추 | C23: 통배추 2kg | D23: 2271 | E23: 3790
B24: 무 | C24: 통무 2kg | D24: 1190 | E24: 2175 | M24: 오 | N24: 대 | O24: 회 | P24: 비 | Q24: 송 | R24: 중 | S24: 법 | T24: 신 | U24: 석 | V24: 덕
B25: 감자 | C25: 감자 1kg | D25: 2605 | E25: 3138 | L25: =(M25+N25+O25+P25+Q25+R25+S25+T25+U25+V25)/10 -> 1777 | M25: 2000 | N25: 2000 | O25: 1800 | P25: 2000 | Q25: 1800 | R25: 1500 | S25: 1500 | T25: 1990 | U25: 1500 | V25: 1680
B26: 고춧가루 | C26: 400g | D26: 13531 | E26: 12464
B27: 콩 | C27: 백태 1kg | D27: 9114 | E27: 8325
B28: 쌀 | C28: 청풍명월 20kg | D28: 49922 | E28: 42178
